[Event "44th Chess Olympiad Women 2022"]
[Site "Chennai"]
[Date "2022.08.08"]
[Round "10.51"]
[White "Taqwa, Hamouri"]
[Black "Munoz Henriquez, Alba Esther"]
[Result "1-0"]
[WhiteElo "1214"]
[BlackElo "1588"]
[Annotator "NA RC"]
[PlyCount "55"]
[EventDate "2022.??.??"]
[TimeControl "60"]

1. e4 {[%emt 0:00:03]} c6 {[%emt 0:00:06]} 2. Nf3 {[%emt 0:00:11]} d5 {[%emt 0:
00:00]} 3. Nc3 {[%emt 0:00:06]} dxe4 {[%emt 0:00:27]} 4. Nxe4 {[%emt 0:00:08]}
Bg4 {[%emt 0:01:24]} 5. h3 {[%emt 0:01:11]} Bh5 {[%emt 0:00:25]} 6. Ng3 {
[%emt 0:00:52]} Bg6 {[%emt 0:02:07]} 7. h4 {[%emt 0:01:39]} h6 {[%emt 0:00:20]}
8. Ne5 {[%emt 0:00:58]} Qd6 {[%emt 0:05:53]} 9. d4 {[%emt 0:01:45]} Nd7 {
[%emt 0:00:37]} 10. Nxg6 {[%emt 0:01:15]} Qxg6 {[%emt 0:00:09]} 11. Bd3 {
[%emt 0:01:14]} Qd6 {[%emt 0:00:33]} 12. c3 {[%emt 0:02:34]} Ngf6 {[%emt 0:00:
00]} 13. Qf3 {[%emt 0:04:45]} e6 {[%emt 0:07:41]} 14. Bf4 {[%emt 0:05:11]} Qd5
{[%emt 0:01:54]} 15. Ne4 {[%emt 0:02:13]} Be7 {[%emt 0:07:47]} 16. Qe2 {
[%emt 0:06:18]} O-O-O {[%emt 0:10:00]} 17. f3 {[%emt 0:05:50]} e5 {[%emt 0:00:
00]} 18. Bc4 {[%emt 0:05:11]} Qa5 {[%emt 0:02:00]} 19. b4 {[%emt 0:03:07]} Qc7
{[%emt 0:03:36]} 20. Bh2 {[%emt 0:02:06]} Rhf8 {[%emt 0:22:06]} 21. O-O {
[%emt 0:13:09]} Nxe4 {[%emt 0:00:00]} 22. fxe4 {[%emt 0:01:16]} Bxh4 {[%emt 0:
00:00]} 23. Bxf7 {[%emt 0:03:32]} Qd6 {[%emt 0:00:00]} 24. dxe5 {[%emt 0:01:26]
} Nxe5 {[%emt 0:00:00]} 25. Bxe5 {[%emt 0:00:39]} Qxe5 {[%emt 0:00:43]} 26.
Qg4+ {[%emt 0:00:30]} Kc7 {[%emt 0:09:21]} 27. Qxh4 {[%emt 0:00:52]} Qxc3 {
[%emt 0:01:07]} 28. Qe7+ {[%emt 0:04:10]} 1-0

[Event "44th Chess Olympiad Women 2022"]
[Site "Chennai"]
[Date "2022.08.08"]
[Round "10.52"]
[White "Maradiaga, Cesia"]
[Black "Mitsuyama, Rikka"]
[Result "0-1"]
[WhiteElo "1533"]
[BlackElo "1157"]
[Annotator "NA RC"]
[PlyCount "108"]
[EventDate "2022.??.??"]
[TimeControl "60"]

1. b3 {[%emt 0:00:02]} d5 {[%emt 0:00:32]} 2. e3 {[%emt 0:00:42]} c5 {[%emt 0:
00:00]} 3. Bb2 {[%emt 0:01:15]} Nc6 {[%emt 0:01:05]} 4. Bb5 {[%emt 0:00:17]}
Nf6 {[%emt 0:06:01]} 5. Nf3 {[%emt 0:02:08]} a6 {[%emt 0:02:38]} 6. Bxc6+ {
[%emt 0:01:05]} bxc6 {[%emt 0:00:16]} 7. h3 {[%emt 0:00:15]} Bf5 {[%emt 0:00:
00]} 8. Nh4 {[%emt 0:05:35]} Bc8 {[%emt 0:08:01]} 9. O-O {[%emt 0:07:36]} e6 {
[%emt 0:06:05]} 10. Nf3 {[%emt 0:01:09]} Bd6 {[%emt 0:01:57]} 11. d3 {[%emt 0:
00:00]} O-O {[%emt 0:01:25]} 12. Nbd2 {[%emt 0:00:55]} Re8 {[%emt 0:06:08]} 13.
c4 {[%emt 0:06:20]} e5 {[%emt 0:09:58]} 14. d4 {[%emt 0:09:10]} cxd4 {[%emt 0:
00:00]} 15. exd4 {[%emt 0:02:06]} e4 {[%emt 0:02:39]} 16. Ne5 {[%emt 0:06:21]}
Qc7 {[%emt 0:07:35]} 17. c5 {[%emt 0:05:48]} Bxe5 {[%emt 0:02:17]} 18. dxe5 {
[%emt 0:01:54]} Nd7 {[%emt 0:00:18]} 19. f3 {[%emt 0:13:51]} e3 {[%emt 0:06:58]
} 20. Nb1 {[%emt 0:01:30]} Nxe5 {[%emt 0:01:40]} 21. Re1 {[%emt 0:01:46]} Ng6 {
[%emt 0:11:23]} 22. Qd4 {[%emt 0:01:29]} f6 {[%emt 0:01:16]} 23. Rxe3 {[%emt 0:
00:00]} Bf5 {[%emt 0:12:07]} 24. Nd2 {[%emt 0:02:07]} Qg3 {[%emt 0:00:32]} 25.
Nf1 {[%emt 0:01:38]} Qg5 {[%emt 0:00:22]} 26. f4 {[%emt 0:04:58]} Nxf4 {
[%emt 0:00:28]} 27. Rg3 {[%emt 0:00:43]} Ne2+ {[%emt 0:00:14]} 28. Kh2 {
[%emt 0:00:34]} Nxg3 {[%emt 0:00:42]} 29. Nxg3 {[%emt 0:00:52]} Bd7 {[%emt 0:
00:00]} 30. Bc1 {[%emt 0:02:05]} Qe5 {[%emt 0:00:25]} 31. Qxe5 {[%emt 0:01:26]}
fxe5 {[%emt 0:00:14]} 32. Bb2 {[%emt 0:00:12]} g6 {[%emt 0:00:34]} 33. Re1 {
[%emt 0:00:05]} e4 {[%emt 0:00:14]} 34. h4 {[%emt 0:00:25]} Bg4 {[%emt 0:00:24]
} 35. Nf1 {[%emt 0:00:47]} Rf8 {[%emt 0:00:17]} 36. Ne3 {[%emt 0:00:11]} Be6 {
[%emt 0:00:28]} 37. Nc2 {[%emt 0:01:07]} Rf2 {[%emt 0:00:33]} 38. Nd4 {[%emt 0:
00:00]} Bd7 {[%emt 0:00:34]} 39. Ne2 {[%emt 0:00:27]} Bg4 {[%emt 0:00:26]} 40.
Nd4 {[%emt 0:02:58]} Rxb2 {[%emt 0:00:44]} 41. Nxc6 {[%emt 0:30:03]} Re8 {
[%emt 0:30:43]} 42. Nb4 {[%emt 0:00:15]} Bf3 {[%emt 0:00:46]} 43. Nxd5 {
[%emt 0:01:08]} Re5 {[%emt 0:00:46]} 44. Nf6+ {[%emt 0:00:54]} Kg7 {[%emt 0:00:
00]} 45. Nd7 {[%emt 0:00:19]} Rd5 {[%emt 0:00:12]} 46. c6 {[%emt 0:01:13]} Rdd2
{[%emt 0:00:45]} 47. Rg1 {[%emt 0:01:18]} Rxg2+ {[%emt 0:00:41]} 48. Rxg2 {
[%emt 0:01:26]} Rxg2+ {[%emt 0:00:08]} 49. Kh3 {[%emt 0:00:08]} Rxa2 {[%emt 0:
00:00]} 50. b4 {[%emt 0:04:18]} Rc2 {[%emt 0:00:24]} 51. Nc5 {[%emt 0:00:35]}
Rxc5 {[%emt 0:00:32]} 52. bxc5 {[%emt 0:00:26]} e3 {[%emt 0:00:08]} 53. c7 {
[%emt 0:00:10]} Bb7 {[%emt 0:00:13]} 54. Kg3 {[%emt 0:00:48]} Kf6 {[%emt 0:00:
00]} 0-1

[Event "44th Chess Olympiad Women 2022"]
[Site "Chennai"]
[Date "2022.08.08"]
[Round "10.52"]
[White "Misawa, Yuki"]
[Black "Garcia, Andrea Nicole"]
[Result "1/2-1/2"]
[WhiteElo "1587"]
[BlackElo "1631"]
[Annotator "NA RC"]
[PlyCount "61"]
[EventDate "2022.??.??"]
[TimeControl "60"]

1. d4 {[%emt 0:00:03]} d5 {[%emt 0:00:06]} 2. c4 {[%emt 0:00:09]} e6 {[%emt 0:
00:00]} 3. Nc3 {[%emt 0:00:05]} Nf6 {[%emt 0:00:05]} 4. Nf3 {[%emt 0:00:05]}
Nbd7 {[%emt 0:00:16]} 5. Bg5 {[%emt 0:00:17]} Be7 {[%emt 0:00:08]} 6. e3 {
[%emt 0:00:06]} c6 {[%emt 0:00:12]} 7. Bd3 {[%emt 0:00:30]} dxc4 {[%emt 0:00:
00]} 8. Bxc4 {[%emt 0:00:13]} b5 {[%emt 0:00:09]} 9. Bd3 {[%emt 0:00:43]} a6 {
[%emt 0:00:19]} 10. O-O {[%emt 0:00:43]} Bb7 {[%emt 0:00:46]} 11. Rc1 {[%emt 0:
00:00]} O-O {[%emt 0:12:19]} 12. Ne4 {[%emt 0:01:23]} Nxe4 {[%emt 0:07:58]} 13.
Bxe7 {[%emt 0:00:38]} Qxe7 {[%emt 0:00:10]} 14. Bxe4 {[%emt 0:00:16]} Rac8 {
[%emt 0:00:21]} 15. Nd2 {[%emt 0:01:33]} f5 {[%emt 0:10:25]} 16. Bf3 {[%emt 0:
00:00]} e5 {[%emt 0:04:14]} 17. dxe5 {[%emt 0:12:37]} Nxe5 {[%emt 0:03:28]} 18.
Nb3 {[%emt 0:18:05]} Nxf3+ {[%emt 0:12:38]} 19. Qxf3 {[%emt 0:01:18]} c5 {
[%emt 0:00:17]} 20. Qf4 {[%emt 0:02:00]} Rf6 {[%emt 0:29:18]} 21. Rfd1 {
[%emt 0:11:17]} c4 {[%emt 0:04:12]} 22. Na5 {[%emt 0:09:47]} Rff8 {[%emt 0:00:
00]} 23. Nxb7 {[%emt 0:00:49]} Qxb7 {[%emt 0:00:06]} 24. Rd4 {[%emt 0:00:58]}
Qf7 {[%emt 0:05:15]} 25. Rcd1 {[%emt 0:04:21]} c3 {[%emt 0:01:31]} 26. bxc3 {
[%emt 0:00:41]} Rxc3 {[%emt 0:01:31]} 27. Qe5 {[%emt 0:01:26]} Qf6 {[%emt 0:00:
00]} 28. Qd5+ {[%emt 0:06:28]} Qf7 {[%emt 0:01:05]} 29. Qe5 {[%emt 0:00:30]}
Qf6 {[%emt 0:00:18]} 30. Qd5+ {[%emt 0:00:27]} Qf7 {[%emt 0:00:26]} 31. Qe5 {
[%emt 0:00:24]} 1/2-1/2

[Event "44th Chess Olympiad Women 2022"]
[Site "Chennai"]
[Date "2022.08.08"]
[Round "10.52"]
[White "Sakai, Azumi"]
[Black "Godoy Yolanda"]
[Result "1-0"]
[WhiteElo "1759"]
[BlackElo "1219"]
[Annotator "NA RC"]
[PlyCount "93"]
[EventDate "2022.??.??"]
[TimeControl "60"]

1. d4 {[%emt 0:00:03]} d5 {[%emt 0:00:44]} 2. c4 {[%emt 0:00:06]} e6 {[%emt 0:
00:00]} 3. Nc3 {[%emt 0:00:15]} c6 {[%emt 0:03:36]} 4. e4 {[%emt 0:00:37]} Bb4
{[%emt 0:02:36]} 5. e5 {[%emt 0:02:53]} Ne7 {[%emt 0:03:16]} 6. Nf3 {[%emt 0:
00:00]} b6 {[%emt 0:01:21]} 7. Qb3 {[%emt 0:03:07]} Bxc3+ {[%emt 0:07:24]} 8.
bxc3 {[%emt 0:00:25]} Ba6 {[%emt 0:01:29]} 9. Be2 {[%emt 0:01:30]} O-O {
[%emt 0:06:29]} 10. O-O {[%emt 0:01:25]} Nf5 {[%emt 0:02:02]} 11. Ba3 {[%emt 0:
00:00]} Re8 {[%emt 0:04:02]} 12. Rfe1 {[%emt 0:03:34]} dxc4 {[%emt 0:06:21]}
13. Bxc4 {[%emt 0:00:34]} Bxc4 {[%emt 0:00:44]} 14. Qxc4 {[%emt 0:00:07]} Qd5 {
[%emt 0:04:08]} 15. Qe2 {[%emt 0:00:43]} h6 {[%emt 0:03:04]} 16. Bb4 {[%emt 0:
00:00]} b5 {[%emt 0:04:10]} 17. Rac1 {[%emt 0:05:35]} Qc4 {[%emt 0:06:07]} 18.
Qxc4 {[%emt 0:00:44]} bxc4 {[%emt 0:00:07]} 19. Nd2 {[%emt 0:00:12]} Na6 {
[%emt 0:00:50]} 20. Ba3 {[%emt 0:00:51]} Rac8 {[%emt 0:01:11]} 21. Nxc4 {
[%emt 0:00:28]} Nc7 {[%emt 0:02:54]} 22. Re2 {[%emt 0:03:13]} Nb5 {[%emt 0:00:
00]} 23. Bc5 {[%emt 0:00:39]} Rc7 {[%emt 0:02:42]} 24. a4 {[%emt 0:00:37]} a6 {
[%emt 0:06:37]} 25. axb5 {[%emt 0:00:21]} cxb5 {[%emt 0:00:38]} 26. Nd6 {
[%emt 0:00:43]} Ra8 {[%emt 0:02:35]} 27. Ra2 {[%emt 0:00:48]} b4 {[%emt 0:00:
00]} 28. Nxf5 {[%emt 0:00:31]} exf5 {[%emt 0:00:30]} 29. cxb4 {[%emt 0:00:19]}
g5 {[%emt 0:01:05]} 30. Rca1 {[%emt 0:00:32]} a5 {[%emt 0:01:34]} 31. Rxa5 {
[%emt 0:00:14]} Rxa5 {[%emt 0:00:16]} 32. bxa5 {[%emt 0:00:18]} h5 {[%emt 0:00:
00]} 33. a6 {[%emt 0:00:19]} Rc8 {[%emt 0:00:25]} 34. a7 {[%emt 0:00:07]} Ra8 {
[%emt 0:00:42]} 35. Rb1 {[%emt 0:00:07]} Kg7 {[%emt 0:00:15]} 36. Rb8 {[%emt 0:
00:00]} Rxa7 {[%emt 0:00:34]} 37. Bxa7 {[%emt 0:00:07]} Kg6 {[%emt 0:00:21]}
38. d5 {[%emt 0:00:33]} f4 {[%emt 0:00:33]} 39. d6 {[%emt 0:00:13]} g4 {
[%emt 0:00:36]} 40. d7 {[%emt 0:00:08]} h4 {[%emt 0:01:05]} 41. d8=Q {[%emt 0:
00:00]} Kf5 {[%emt 0:31:34]} 42. Qf6+ {[%emt 0:00:33]} Ke4 {[%emt 0:00:44]} 43.
Rb4+ {[%emt 0:00:10]} Kd3 {[%emt 0:00:42]} 44. Qxf4 {[%emt 0:02:20]} g3 {
[%emt 0:03:02]} 45. Qc4+ {[%emt 0:00:54]} Kd2 {[%emt 0:00:18]} 46. Rb2+ {
[%emt 0:00:36]} Ke1 {[%emt 0:00:46]} 47. Qc1# {[%emt 0:00:07]} 1-0

[Event "44th Chess Olympiad Women 2022"]
[Site "Chennai"]
[Date "2022.08.08"]
[Round "10.52"]
[White "Viana, Valeria"]
[Black "Kojima, Natsumi"]
[Result "0-1"]
[WhiteElo "1441"]
[BlackElo "1782"]
[Annotator "NA RC"]
[PlyCount "48"]
[EventDate "2022.??.??"]
[TimeControl "60"]

1. e4 {[%emt 0:00:02]} e6 {[%emt 0:00:06]} 2. d4 {[%emt 0:00:07]} d5 {[%emt 0:
00:00]} 3. exd5 {[%emt 0:00:15]} exd5 {[%emt 0:00:07]} 4. Bd3 {[%emt 0:00:09]}
Nc6 {[%emt 0:00:12]} 5. c3 {[%emt 0:00:26]} Bd6 {[%emt 0:00:52]} 6. Nf3 {
[%emt 0:00:55]} Nge7 {[%emt 0:01:03]} 7. Qc2 {[%emt 0:00:53]} Bg4 {[%emt 0:00:
00]} 8. Qe2 {[%emt 0:05:28]} Qd7 {[%emt 0:01:55]} 9. Bg5 {[%emt 0:03:40]} f6 {
[%emt 0:02:49]} 10. Bh4 {[%emt 0:00:55]} O-O-O {[%emt 0:00:49]} 11. O-O {
[%emt 0:09:06]} Rde8 {[%emt 0:06:45]} 12. Qd1 {[%emt 0:01:38]} g5 {[%emt 0:00:
00]} 13. Bg3 {[%emt 0:02:51]} h5 {[%emt 0:03:31]} 14. Bxd6 {[%emt 0:03:14]}
Qxd6 {[%emt 0:00:37]} 15. Nbd2 {[%emt 0:02:32]} h4 {[%emt 0:06:33]} 16. h3 {
[%emt 0:06:19]} Bd7 {[%emt 0:05:57]} 17. b4 {[%emt 0:05:48]} g4 {[%emt 0:01:47]
} 18. hxg4 {[%emt 0:01:00]} Bxg4 {[%emt 0:00:29]} 19. Qa4 {[%emt 0:03:30]} Reg8
{[%emt 0:03:42]} 20. Kh1 {[%emt 0:04:38]} Qf4 {[%emt 0:16:39]} 21. Qd1 {
[%emt 0:08:52]} Nf5 {[%emt 0:04:00]} 22. Rg1 {[%emt 0:09:46]} Ng3+ {[%emt 0:00:
00]} 23. Kh2 {[%emt 0:05:33]} Ne4+ {[%emt 0:02:17]} 24. Kh1 {[%emt 0:01:07]}
Nxf2# {[%emt 0:00:25]} 0-1

[Event "44th Chess Olympiad Women 2022"]
[Site "Chennai"]
[Date "2022.08.08"]
[Round "10.53"]
[White "Bantiwalu, Aster Melake"]
[Black "Nansubuga, Gloria"]
[Result "1-0"]
[WhiteElo "1425"]
[BlackElo "1538"]
[Annotator "NA RC"]
[PlyCount "131"]
[EventDate "2022.??.??"]
[TimeControl "60"]

1. e4 {[%emt 0:00:06]} d5 {[%emt 0:00:11]} 2. exd5 {[%emt 0:00:25]} Qxd5 {
[%emt 0:00:06]} 3. Nc3 {[%emt 0:00:13]} Qd8 {[%emt 0:00:14]} 4. Bc4 {[%emt 0:
00:00]} e6 {[%emt 0:00:28]} 5. Nf3 {[%emt 0:00:21]} Nf6 {[%emt 0:00:12]} 6. d3
{[%emt 0:00:30]} Nc6 {[%emt 0:00:28]} 7. a3 {[%emt 0:00:24]} Bd6 {[%emt 0:00:
00]} 8. Bg5 {[%emt 0:00:46]} h6 {[%emt 0:00:06]} 9. Bh4 {[%emt 0:00:24]} O-O {
[%emt 0:00:25]} 10. O-O {[%emt 0:00:28]} Be7 {[%emt 0:00:30]} 11. Bg3 {[%emt 0:
00:00]} a6 {[%emt 0:01:09]} 12. h3 {[%emt 0:00:26]} b5 {[%emt 0:00:08]} 13. Ba2
{[%emt 0:01:12]} Bb7 {[%emt 0:00:02]} 14. Re1 {[%emt 0:01:31]} Nh5 {[%emt 0:00:
00]} 15. Bh2 {[%emt 0:00:44]} Bd6 {[%emt 0:00:33]} 16. Bxd6 {[%emt 0:01:16]}
Qxd6 {[%emt 0:00:03]} 17. Ne4 {[%emt 0:00:46]} Qe7 {[%emt 0:00:39]} 18. c3 {
[%emt 0:00:34]} Nf6 {[%emt 0:00:13]} 19. Ng3 {[%emt 0:01:17]} Nh7 {[%emt 0:00:
00]} 20. Ne4 {[%emt 0:02:49]} Rad8 {[%emt 0:05:27]} 21. Qc2 {[%emt 0:00:46]}
Ng5 {[%emt 0:01:59]} 22. Nexg5 {[%emt 0:01:25]} hxg5 {[%emt 0:00:10]} 23. Qd2 {
[%emt 0:00:35]} Qf6 {[%emt 0:01:18]} 24. Nxg5 {[%emt 0:02:40]} Ne5 {[%emt 0:00:
00]} 25. d4 {[%emt 0:00:46]} Ng6 {[%emt 0:04:09]} 26. Ne4 {[%emt 0:01:05]} Qf5
{[%emt 0:01:00]} 27. Qe3 {[%emt 0:00:32]} Nh4 {[%emt 0:06:15]} 28. f3 {[%emt 0:
00:00]} Qg6 {[%emt 0:00:57]} 29. Qf2 {[%emt 0:00:12]} Nf5 {[%emt 0:02:21]} 30.
Nc5 {[%emt 0:01:24]} Bc8 {[%emt 0:06:25]} 31. Re4 {[%emt 0:01:05]} Nh6 {
[%emt 0:02:52]} 32. Kh1 {[%emt 0:00:32]} Qf6 {[%emt 0:12:51]} 33. Rae1 {
[%emt 0:01:02]} Rd6 {[%emt 0:01:08]} 34. R4e3 {[%emt 0:01:12]} Nf5 {[%emt 0:00:
00]} 35. Ne4 {[%emt 0:00:47]} Qh6 {[%emt 0:03:56]} 36. Nxd6 {[%emt 0:01:10]}
cxd6 {[%emt 0:07:09]} 37. Re4 {[%emt 0:02:27]} Bb7 {[%emt 0:00:57]} 38. Rg4 {
[%emt 0:00:47]} Qf6 {[%emt 0:05:03]} 39. Rf4 {[%emt 0:01:35]} g5 {[%emt 0:00:
00]} 40. Rfe4 {[%emt 0:01:42]} Kg7 {[%emt 0:02:48]} 41. R4e2 {[%emt 0:30:30]}
Rh8 {[%emt 0:30:06]} 42. Bb1 {[%emt 0:00:35]} Nh4 {[%emt 0:00:49]} 43. Be4 {
[%emt 0:00:34]} d5 {[%emt 0:07:07]} 44. Bc2 {[%emt 0:00:14]} Qf4 {[%emt 0:00:
00]} 45. g3 {[%emt 0:01:42]} Qxf3+ {[%emt 0:03:35]} 46. Qxf3 {[%emt 0:00:07]}
Nxf3 {[%emt 0:00:08]} 47. Rf1 {[%emt 0:00:16]} g4 {[%emt 0:01:22]} 48. h4 {
[%emt 0:00:17]} e5 {[%emt 0:01:16]} 49. dxe5 {[%emt 0:00:51]} Rh5 {[%emt 0:00:
00]} 50. e6 {[%emt 0:00:44]} fxe6 {[%emt 0:00:55]} 51. Rxe6 {[%emt 0:00:12]}
Re5 {[%emt 0:00:00]} 52. Rxe5 {[%emt 0:00:00]} Nxe5 {[%emt 0:00:00]} 53. Rd1 {
[%emt 0:00:00]} d4+ {[%emt 0:00:00]} 54. Kg1 {[%emt 0:00:00]} dxc3 {[%emt 0:00:
00]} 55. bxc3 {[%emt 0:00:00]} Bf3 {[%emt 0:00:00]} 56. Rd6 {[%emt 0:00:00]} a5
{[%emt 0:00:00]} 57. Rb6 {[%emt 0:00:00]} Bc6 {[%emt 0:00:00]} 58. Kf2 {
[%emt 0:00:00]} Kf7 {[%emt 0:00:00]} 59. Bb3+ {[%emt 0:00:00]} Ke7 {[%emt 0:00:
00]} 60. Ke3 {[%emt 0:00:00]} a4 {[%emt 0:00:00]} 61. Bg8 {[%emt 0:00:00]} Bd7
{[%emt 0:02:24]} 62. Kf4 {[%emt 0:00:00]} Nd3+ {[%emt 0:03:54]} 63. Kg5 {
[%emt 0:00:00]} Ne5 {[%emt 0:00:52]} 64. h5 {[%emt 0:00:00]} Nf3+ {[%emt 0:00:
00]} 65. Kg6 {[%emt 0:00:00]} Ne5+ {[%emt 0:01:37]} 66. Kg7 {[%emt 0:00:00]}
1-0

[Event "44th Chess Olympiad Women 2022"]
[Site "Chennai"]
[Date "2022.08.08"]
[Round "10.53"]
[White "Kawuma Patricia"]
[Black "Abera, Mekdes Demssie"]
[Result "1-0"]
[WhiteElo "1653"]
[BlackElo "1342"]
[Annotator "NA RC"]
[PlyCount "103"]
[EventDate "2022.??.??"]
[TimeControl "60"]

1. e4 {[%emt 0:00:04]} c5 {[%emt 0:00:11]} 2. Nf3 {[%emt 0:00:11]} Nc6 {
[%emt 0:00:17]} 3. d4 {[%emt 0:00:14]} cxd4 {[%emt 0:00:47]} 4. Nxd4 {[%emt 0:
00:00]} Nf6 {[%emt 0:00:40]} 5. Nc3 {[%emt 0:00:15]} e6 {[%emt 0:00:47]} 6. Bg5
{[%emt 0:00:18]} Be7 {[%emt 0:00:45]} 7. Be2 {[%emt 0:00:44]} Nxe4 {[%emt 0:00:
00]} 8. Bxe7 {[%emt 0:00:22]} Nxc3 {[%emt 0:00:09]} 9. Bxd8 {[%emt 0:00:11]}
Nxd1 {[%emt 0:00:08]} 10. Nxc6 {[%emt 0:00:48]} bxc6 {[%emt 0:00:19]} 11. Rxd1
{[%emt 0:01:55]} Kxd8 {[%emt 0:00:08]} 12. O-O {[%emt 0:00:15]} d5 {[%emt 0:00:
00]} 13. c4 {[%emt 0:00:26]} Rb8 {[%emt 0:01:08]} 14. cxd5 {[%emt 0:00:40]}
cxd5 {[%emt 0:00:22]} 15. b3 {[%emt 0:00:07]} Ke7 {[%emt 0:00:58]} 16. Rc1 {
[%emt 0:00:21]} Rd8 {[%emt 0:07:33]} 17. Rc5 {[%emt 0:05:18]} Bb7 {[%emt 0:00:
00]} 18. Ra5 {[%emt 0:04:16]} Ra8 {[%emt 0:01:24]} 19. Rc1 {[%emt 0:01:26]}
Rdc8 {[%emt 0:01:54]} 20. Rxc8 {[%emt 0:00:09]} Bxc8 {[%emt 0:00:08]} 21. Ba6 {
[%emt 0:00:02]} Bxa6 {[%emt 0:00:17]} 22. Rxa6 {[%emt 0:00:02]} Kd7 {[%emt 0:
00:00]} 23. Kf1 {[%emt 0:00:09]} h5 {[%emt 0:00:36]} 24. Ke2 {[%emt 0:00:05]}
g5 {[%emt 0:00:22]} 25. Kd3 {[%emt 0:00:22]} f6 {[%emt 0:00:26]} 26. b4 {
[%emt 0:00:31]} Rc8 {[%emt 0:12:32]} 27. Rxa7+ {[%emt 0:00:49]} Rc7 {[%emt 0:
00:00]} 28. Ra3 {[%emt 0:03:23]} Kc6 {[%emt 0:02:52]} 29. Ra6+ {[%emt 0:00:30]}
Kd7 {[%emt 0:03:30]} 30. b5 {[%emt 0:00:08]} Rc4 {[%emt 0:15:14]} 31. a4 {
[%emt 0:03:45]} f5 {[%emt 0:08:04]} 32. a5 {[%emt 0:03:22]} Rb4 {[%emt 0:02:35]
} 33. Rb6 {[%emt 0:01:30]} Ra4 {[%emt 0:04:20]} 34. a6 {[%emt 0:00:28]} e5 {
[%emt 0:03:37]} 35. Rb7+ {[%emt 0:00:58]} Kc8 {[%emt 0:06:30]} 36. Rf7 {
[%emt 0:00:29]} e4+ {[%emt 0:04:49]} 37. Kc2 {[%emt 0:00:17]} Kb8 {[%emt 0:00:
00]} 38. Rxf5 {[%emt 0:01:26]} d4 {[%emt 0:00:28]} 39. Rxg5 {[%emt 0:00:52]}
Ra2+ {[%emt 0:00:49]} 40. Kb3 {[%emt 0:00:03]} Rxf2 {[%emt 0:00:29]} 41. Rg8+ {
[%emt 0:30:41]} Ka7 {[%emt 0:30:39]} 42. Rg7+ {[%emt 0:00:03]} Kb6 {[%emt 0:00:
00]} 43. Rb7+ {[%emt 0:00:13]} Kc5 {[%emt 0:05:04]} 44. a7 {[%emt 0:00:07]} e3
{[%emt 0:00:00]} 45. a8=Q {[%emt 0:00:00]} e2 {[%emt 0:00:00]} 46. Qc8+ {
[%emt 0:00:00]} Kd5 {[%emt 0:00:00]} 47. Rd7+ {[%emt 0:00:00]} Ke4 {[%emt 0:00:
00]} 48. Qe8+ {[%emt 0:00:00]} Kd3 {[%emt 0:00:00]} 49. Qg6+ {[%emt 0:00:00]}
Ke3 {[%emt 0:00:00]} 50. Re7+ {[%emt 0:00:00]} Kd2 {[%emt 0:00:00]} 51. Qc2+ {
[%emt 0:00:00]} Ke1 {[%emt 0:00:00]} 52. Qc1# {[%emt 0:00:00]} 1-0

[Event "44th Chess Olympiad Women 2022"]
[Site "Chennai"]
[Date "2022.08.08"]
[Round "10.53"]
[White "Mekonen, Selemawit Kidanemar"]
[Black "Takali Milly"]
[Result "0-1"]
[WhiteElo "1263"]
[BlackElo "1482"]
[Annotator "NA RC"]
[PlyCount "138"]
[EventDate "2022.??.??"]
[TimeControl "60"]

1. e4 {[%emt 0:02:39]} c6 {[%emt 0:00:14]} 2. d4 {[%emt 0:00:19]} d5 {[%emt 0:
00:00]} 3. Nc3 {[%emt 0:02:05]} dxe4 {[%emt 0:00:57]} 4. Nxe4 {[%emt 0:00:55]}
Nf6 {[%emt 0:00:02]} 5. Nxf6+ {[%emt 0:02:25]} exf6 {[%emt 0:00:03]} 6. Nf3 {
[%emt 0:04:19]} Bd6 {[%emt 0:00:12]} 7. Bc4 {[%emt 0:04:36]} O-O {[%emt 0:00:
00]} 8. O-O {[%emt 0:00:48]} b5 {[%emt 0:00:57]} 9. Bb3 {[%emt 0:00:43]} a5 {
[%emt 0:00:01]} 10. a4 {[%emt 0:04:03]} b4 {[%emt 0:00:58]} 11. Re1 {[%emt 0:
00:00]} Nd7 {[%emt 0:00:12]} 12. c4 {[%emt 0:02:14]} Re8 {[%emt 0:02:53]} 13.
Rxe8+ {[%emt 0:02:29]} Qxe8 {[%emt 0:00:04]} 14. c5 {[%emt 0:01:07]} Bc7 {
[%emt 0:00:08]} 15. Bc4 {[%emt 0:03:05]} Nf8 {[%emt 0:02:08]} 16. b3 {[%emt 0:
00:00]} Be6 {[%emt 0:00:47]} 17. Qd3 {[%emt 0:03:03]} Qd7 {[%emt 0:00:48]} 18.
Bd2 {[%emt 0:00:59]} Rd8 {[%emt 0:00:27]} 19. Re1 {[%emt 0:02:06]} Bf5 {
[%emt 0:04:15]} 20. Qe3 {[%emt 0:02:55]} Ng6 {[%emt 0:00:44]} 21. Bd3 {[%emt 0:
00:00]} Be6 {[%emt 0:04:41]} 22. h3 {[%emt 0:01:56]} Bf4 {[%emt 0:00:51]} 23.
Qe2 {[%emt 0:03:37]} Bxd2 {[%emt 0:00:08]} 24. Qxd2 {[%emt 0:02:04]} Bxb3 {
[%emt 0:00:19]} 25. Bxg6 {[%emt 0:01:23]} hxg6 {[%emt 0:00:07]} 26. Re3 {
[%emt 0:05:16]} Bd5 {[%emt 0:00:12]} 27. Ne1 {[%emt 0:01:03]} Re8 {[%emt 0:00:
00]} 28. Rxe8+ {[%emt 0:02:30]} Qxe8 {[%emt 0:00:03]} 29. Nd3 {[%emt 0:02:32]}
g5 {[%emt 0:05:50]} 30. Qe3 {[%emt 0:06:01]} Kf8 {[%emt 0:00:51]} 31. Qxe8+ {
[%emt 0:00:18]} Kxe8 {[%emt 0:00:02]} 32. Kh2 {[%emt 0:01:42]} Ke7 {[%emt 0:00:
00]} 33. Kg3 {[%emt 0:01:00]} Bb3 {[%emt 0:00:22]} 34. Nb2 {[%emt 0:00:34]} Ke6
{[%emt 0:00:09]} 35. Kf3 {[%emt 0:01:02]} Kd5 {[%emt 0:00:13]} 36. Ke3 {
[%emt 0:00:31]} f5 {[%emt 0:00:14]} 37. Kd3 {[%emt 0:03:37]} Ba2 {[%emt 0:00:
00]} 38. g3 {[%emt 0:04:27]} Bb1+ {[%emt 0:00:14]} 39. Ke3 {[%emt 0:00:36]} Bc2
{[%emt 0:00:11]} 40. f4 {[%emt 0:01:38]} gxf4+ {[%emt 0:00:22]} 41. gxf4 {
[%emt 0:30:37]} f6 {[%emt 0:30:13]} 42. h4 {[%emt 0:01:48]} g6 {[%emt 0:00:06]}
43. Kd2 {[%emt 0:01:13]} b3 {[%emt 0:01:45]} 44. Kc3 {[%emt 0:02:54]} Ke4 {
[%emt 0:01:24]} 45. Nc4 {[%emt 0:00:25]} Kxf4 {[%emt 0:00:09]} 46. Nxa5 {
[%emt 0:00:30]} Ke3 {[%emt 0:03:51]} 47. Nxc6 {[%emt 0:01:10]} f4 {[%emt 0:00:
00]} 48. Na5 {[%emt 0:07:57]} f3 {[%emt 0:00:07]} 49. Nc4+ {[%emt 0:00:21]} Ke2
{[%emt 0:00:04]} 50. Nd2 {[%emt 0:00:45]} f2 {[%emt 0:01:20]} 51. c6 {[%emt 0:
00:00]} Be4 {[%emt 0:01:32]} 52. c7 {[%emt 0:00:22]} Bb7 {[%emt 0:00:59]} 53.
d5 {[%emt 0:01:19]} b2 {[%emt 0:00:06]} 54. d6 {[%emt 0:01:24]} Bc8 {[%emt 0:
00:00]} 55. Kc2 {[%emt 0:02:07]} Bf5+ {[%emt 0:00:16]} 56. Ne4 {[%emt 0:01:26]}
b1=Q+ {[%emt 0:01:23]} 57. Kxb1 {[%emt 0:00:51]} Bxe4+ {[%emt 0:01:30]} 58. Kb2
{[%emt 0:00:00]} Bf5 {[%emt 0:00:05]} 59. Kc3 {[%emt 0:00:00]} f1=Q {[%emt 0:
00:00]} 60. Kb4 {[%emt 0:00:00]} Qf4+ {[%emt 0:00:00]} 61. Kc5 {[%emt 0:00:00]}
Qxa4 {[%emt 0:00:00]} 62. Kb6 {[%emt 0:00:00]} Qb4+ {[%emt 0:00:00]} 63. Kc6 {
[%emt 0:00:00]} Qe4+ {[%emt 0:00:00]} 64. Kb6 {[%emt 0:00:00]} Bc8 65. Kc5 {
[%emt 0:00:00]} Qe5+ {[%emt 0:00:00]} 66. Kc6 {[%emt 0:00:00]} Qe4+ {[%emt 0:
00:00]} 67. Kc5 {[%emt 0:00:00]} f5 {[%emt 0:00:00]} 68. Kb6 {[%emt 0:00:00]}
f4 {[%emt 0:00:00]} 69. Ka7 {[%emt 0:00:00]} Qb7# {[%emt 0:00:00]} 0-1